bitfinex/quotes_ETHUSD_20250730
["timestamp","ask_amount","ask_price","bid_price","bid_amount"]
[1753843470873,4.148,3823.5,3823.2,0.9033]
[1753843471540,0.1304,3823.7,3823.3,0.5779]
[1753843471730,3.0,3823.5,3823.3,0.5779]
[1753843471926,3.0,3823.5,3823.4,0.7083]
[1753843472859,0.1304,3823.9,3823.4,0.7083]
[1753843473041,4.146,3823.8,3823.4,0.1304]
[1753843473226,4.145,3823.7,3823.5,0.5779]
[1753843473431,4.145,3823.7,3823.6,0.5779]
[1753843473633,4.145,3823.7,3823.6,0.7083]
[1753843473933,7.145,3823.7,3823.6,0.7083]
[1753843474932,7.142,3823.7,3823.6,0.7083]
[1753843475134,7.142,3823.7,3823.6,0.5114]
[1753843475551,7.142,3823.7,3823.6,0.1304]
[1753843476551,7.142,3823.7,3823.2,0.7729]
[1753843476949,7.2724,3823.7,3823.2,0.9033]
[1753843477257,4.139,3823.6,3823.2,0.9033]
[1753843479167,4.137,3823.5,3823.2,0.9033]
[1753843479580,4.137,3823.4,3823.2,0.9033]
[1753843479778,4.6311,3823.4,3823.2,0.7729]
[1753843479976,4.2674,3823.4,3823.2,0.7729]
[1753843481047,4.7615,3823.4,3823.2,0.7729]
[1753843481240,4.2674,3823.4,3823.2,0.7729]
[1753843481569,4.7615,3823.4,3823.1,0.001]
[1753843482487,0.1304,3823.4,3823.1,0.001]
[1753843482649,4.134,3823.3,3823.2,0.1304]
[1753843482843,4.133,3823.3,3823.2,0.1304]
[1753843483047,0.9421,3824.5,3823.3,0.7989]
[1753843483274,0.1304,3824.2,3823.3,0.7989]
[1753843483473,0.1304,3823.8,3823.3,0.7989]
[1753843483782,3.0,3823.6,3823.3,0.7989]
[1753843483943,4.133,3823.5,3823.3,0.9958]
[1753843484143,0.1304,3824.2,3823.6,0.1304]
[1753843484144,3.0,3823.7,3823.6,0.1304]
[1753843484343,3.0,3823.7,3823.4,0.7083]
[1753843484598,3.0,3823.7,3823.6,0.1304]
[1753843485663,0.6245,3824.2,3823.6,0.1304]
[1753843485857,3.0,3824.0,3823.6,0.1304]
[1753843486793,0.4941,3823.9,3823.3,0.7989]
[1753843486997,3.0,3823.7,3823.3,0.9293]
[1753843487557,0.4941,3823.6,3823.3,0.9293]
[1753843487758,4.132,3823.5,3823.3,0.9293]
[1753843488295,4.132,3823.5,3823.3,0.7989]
[1753843488482,0.1304,3823.7,3823.3,0.7989]
[1753843488678,2.61399001,3825.6,3823.3,0.7989]
[1753843488679,4.132,3823.6,3823.3,0.7989]
[1753843491302,0.4941,3823.5,3823.3,0.7989]
[1753843491599,0.4941,3823.4,3823.3,0.7989]
[1753843491980,0.9421,3823.4,3823.1,0.001]
[1753843492157,5.0671,3823.3,3823.1,0.001]
[1753843492351,3.0,3823.2,3823.1,0.001]
[1753843492601,3.9421,3823.2,3823.1,0.001]
[1753843493099,4.4921,3823.2,3823.1,0.001]
[1753843495721,7.91630996,3823.2,3823.1,0.001]
[1753843495885,9.21422196,3823.2,3823.1,0.001]
[1753843496403,6.598612,3823.2,3823.1,0.001]
[1753843496888,9.21422196,3823.2,3823.1,0.001]
[1753843497502,39.21422196,3823.2,3823.1,0.001]
[1753843498616,6.917012,3823.2,3823.1,0.001]
[1753843499274,9.917012,3823.2,3823.1,0.001]
[1753843499475,10.04525508,3823.2,3823.1,0.001]
[1753843500969,9.59725508,3823.2,3823.1,0.001]
[1753843501374,10.04165508,3823.2,3823.1,0.001]
[1753843502178,7.123,3823.2,3823.1,0.001]
[1753843503818,7.122,3823.2,3823.1,0.7698]
[1753843503995,7.122,3823.2,3823.1,0.001]
[1753843504528,9.3802,3823.2,3823.1,0.001]
[1753843504816,9.5106,3823.2,3823.1,0.001]
[1753843505011,10.72321435,3823.2,3823.1,0.001]
[1753843506306,13.33882431,3823.2,3823.1,0.001]
[1753843506512,10.72321435,3823.2,3823.1,0.001]
[1753843507372,13.33882431,3823.2,3823.1,0.001]
[1753843507618,43.33882431,3823.2,3823.1,0.001]
[1753843508530,13.33882431,3823.2,3823.1,0.001]
[1753843508899,43.33882431,3823.2,3823.1,0.001]
[1753843509787,13.33882431,3823.2,3823.1,0.001]
[1753843510118,43.33882431,3823.2,3823.1,0.001]
[1753843510430,46.10182431,3823.2,3823.1,0.001]
[1753843510799,16.10182431,3823.2,3823.1,0.001]
[1753843511004,46.10182431,3823.2,3823.1,0.001]
[1753843511318,46.23348125,3823.2,3823.1,0.001]
[1753843512205,39.35048125,3823.2,3823.1,0.001]
[1753843512356,42.91748125,3823.2,3823.1,0.001]
[1753843512651,43.46748125,3823.2,3823.1,0.001]
[1753843512851,13.46748125,3823.2,3823.1,0.001]
[1753843513014,43.46748125,3823.2,3823.1,0.001]
[1753843513456,46.23048125,3823.2,3823.1,0.001]
[1753843513658,3.16595207,3822.7,3822.2,0.001]
[1753843513811,33.55,3822.2,3822.1,0.04]
[1753843514018,41.09439428,3822.2,3822.1,0.04]
[1753843514320,44.78399428,3822.2,3822.1,0.04]
[1753843514643,42.02099428,3822.2,3822.1,0.04]
[1753843514870,44.59125889,3822.2,3822.1,0.04]
[1753843515092,47.35425889,3822.2,3822.1,0.04]
[1753843516346,36.94557895,3821.2,3821.1,0.04]
[1753843516647,41.19277895,3821.2,3821.1,0.04]
[1753843516844,42.11937895,3821.2,3821.1,0.04]
[1753843517077,44.68964356,3821.2,3821.1,0.04]
[1753843521775,44.68964356,3821.2,3821.1,0.041]
[1753843521958,14.68964356,3821.2,3821.1,0.041]
[1753843522183,40.57364356,3821.2,3821.1,0.041]
[1753843522403,40.12924356,3821.2,3821.1,0.041]
[1753843522577,44.23924356,3821.2,3821.1,0.041]
[1753843522778,44.68364356,3821.2,3821.1,0.041]
[1753843525263,44.81834918,3821.2,3821.1,0.041]
[1753843526101,44.37394918,3821.2,3821.1,0.041]
[1753843526300,5.83617023,3821.2,3821.1,0.041]
[1753843526506,4.37590562,3821.2,3821.1,0.041]
[1753843526710,7.37590562,3821.2,3821.1,0.041]
[1753843527006,3.81590562,3821.2,3821.1,0.041]
[1753843527204,0.26590562,3821.2,3821.1,0.6189]
[1753843527362,4.37590562,3821.2,3821.1,1.3783]
[1753843527562,4.92590562,3821.2,3821.1,1.3783]
[1753843527762,7.92590562,3821.2,3821.1,1.3783]
[1753843527992,7.37590562,3821.2,3821.1,1.1814]
[1753843528395,7.92590562,3821.2,3821.1,1.1814]
[1753843529021,7.92590562,3821.2,3821.1,1.3783]
[1753843529988,7.92590562,3821.2,3821.1,0.041]
[1753843530191,9.20069618,3821.2,3821.1,0.041]
[1753843530703,8.71849618,3821.2,3821.1,0.041]
[1753843531968,7.92590562,3821.2,3821.1,0.041]
[1753843532173,7.92490562,3821.2,3821.1,0.6189]
[1753843533103,3.81590562,3821.2,3821.1,0.6189]
[1753843533424,0.19596278,3822.2,3821.1,1.4166]
[1753843533571,0.1312,3821.5,3821.2,0.5779]
[1753843533765,3.0,3821.3,3821.1,0.8387]
[1753843534004,7.109,3821.2,3821.1,0.8387]
[1753843534270,7.109,3821.2,3821.1,1.4166]
[1753843534573,6.289,3822.6,3821.2,0.8233]
[1753843534789,0.1312,3821.8,3821.3,0.5779]
[1753843534988,0.1312,3821.8,3821.4,0.8233]
[1753843535218,4.109,3821.7,3821.5,0.9621]
[1753843535419,3.0,3821.6,3821.5,0.9621]
[1753843535807,4.109,3821.6,3821.5,0.9621]
[1753843535995,4.109,3821.6,3821.5,1.54]
[1753843539093,0.1312,3822.0,3821.6,0.7741]
[1753843539345,3.0,3821.7,3821.6,1.352]
[1753843539494,3.0,3821.9,3821.6,1.352]
[1753843539696,3.0,3821.9,3821.7,0.5779]
[1753843540197,4.108,3821.9,3821.8,0.381]
[1753843540397,4.108,3821.9,3821.8,0.5779]
[1753843541930,4.108,3821.9,3821.8,0.381]
[1753843542110,4.108,3821.9,3821.8,0.5779]
[1753843542632,4.108,3821.9,3821.6,0.7741]
[1753843542940,4.582,3821.9,3821.6,0.7741]
[1753843543139,3.55,3821.8,3821.6,0.7741]
[1753843543436,3.1312,3821.8,3821.6,0.7741]
[1753843543608,4.108,3821.9,3821.7,0.381]
[1753843543814,3.0,3821.8,3821.7,0.5779]
[1753843544335,3.0,3821.8,3821.7,0.381]
[1753843544845,3.0,3821.8,3821.6,0.9053]
[1753843548947,4.108,3821.8,3821.6,0.9053]
[1753843549155,3.0,3821.7,3821.6,0.9053]
[1753843549450,3.474,3821.7,3821.1,0.041]
[1753843549608,3.6052,3821.7,3821.2,0.7599]
[1753843549843,0.474,3821.6,3821.2,0.7599]
[1753843550048,5.0538,3821.5,3821.2,0.7599]
[1753843550282,0.9468,3821.4,3821.2,0.7599]
[1753843550584,4.628,3821.3,3821.1,0.041]
[1753843550774,7.107,3821.2,3821.1,0.041]
[1753843552948,3.0,3821.2,3821.1,0.041]
[1753843553157,7.107,3821.2,3821.1,0.041]
[1753843555510,8.0538,3821.2,3821.1,0.041]
[1753843556207,8.185,3821.2,3821.1,0.041]
[1753843556564,7.7122,3821.2,3821.1,0.041]
[1753843557314,8.185,3821.2,3821.1,0.041]
[1753843557504,4.078,3821.2,3821.1,0.041]
[1753843557708,8.185,3821.2,3821.1,0.041]
[1753843559264,7.7122,3821.2,3821.1,0.041]
[1753843559465,3.0,3821.2,3821.1,0.041]
[1753843559971,7.107,3821.2,3821.1,0.041]
[1753843563026,7.6006,3821.2,3821.1,0.041]
[1753843564915,8.0449,3821.2,3821.1,0.041]
[1753843565091,7.107,3821.2,3821.1,0.041]
[1753843566313,3.0,3821.2,3821.1,0.8118]
[1753843566614,7.107,3821.2,3821.1,0.8118]
[1753843566776,3.0,3821.2,3821.1,1.3897]
[1753843567119,3.0,3821.2,3821.1,1.5209]
[1753843567493,3.0,3821.3,3821.1,1.5209]
[1753843567717,4.106,3821.4,3821.1,1.5209]
[1753843567873,0.1312,3821.9,3821.3,0.1312]
[1753843568075,4.106,3821.8,3821.3,0.1312]
[1753843568275,4.5996,3821.8,3821.6,0.1312]
[1753843568475,4.106,3821.8,3821.6,0.1312]
[1753843568694,3.0,3821.7,3821.6,0.1312]
[1753843568891,4.106,3821.7,3821.6,0.1312]
[1753843569123,4.5996,3821.7,3821.6,0.1312]
[1753843569636,5.0439,3821.7,3821.4,0.1312]
[1753843569848,3.9379,3821.6,3821.4,0.1312]
[1753843570037,7.106,3821.5,3821.4,0.1312]
[1753843570398,7.5996,3821.5,3821.4,0.1312]
[1753843572112,8.0439,3821.5,3821.4,0.1312]
[1753843572702,8.0439,3821.5,3821.1,0.8118]
[1753843572904,0.4936,3821.4,3821.2,0.1312]
[1753843573225,4.106,3821.3,3821.2,0.1312]
[1753843573400,4.5996,3821.3,3821.2,0.1312]
[1753843575147,0.4936,3821.3,3821.2,0.1312]
[1753843575447,4.5996,3821.3,3821.2,0.1312]
[1753843575607,4.106,3821.3,3821.2,0.1312]
[1753843576164,5.0439,3821.3,3821.2,0.1312]
[1753843576682,4.5996,3821.3,3821.2,0.1312]
[1753843577466,0.1312,3821.8,3821.2,0.1312]
[1753843577669,4.105,3821.8,3821.7,0.1312]
[1753843577874,0.4936,3821.8,3821.7,0.1312]
[1753843578676,4.105,3822.0,3821.7,0.1312]
[1753843578853,4.105,3821.9,3821.8,0.8134]
[1753843580130,4.105,3822.0,3821.8,1.1944]
[1753843580463,4.105,3822.0,3821.9,0.1312]
[1753843580662,0.002,3822.1,3821.9,0.1312]
[1753843582139,0.4936,3822.0,3821.9,0.1312]
[1753843582640,0.9379,3822.0,3821.9,0.1312]
[1753843582840,0.9379,3822.0,3821.8,0.1312]
[1753843583152,0.4936,3821.9,3821.8,0.1312]
[1753843583356,0.9379,3821.9,3821.8,0.1312]
[1753843583665,2.19799,3821.9,3821.1,0.041]
[1753843583867,0.1312,3821.7,3821.2,0.1312]
[1753843584063,0.1312,3821.7,3821.1,0.1722]
[1753843584369,3.0,3821.5,3821.1,0.1722]
[1753843584826,0.9379,3821.4,3821.1,0.1722]
[1753843585241,0.9379,3821.3,3821.1,0.1722]
[1753843585671,0.4443,3821.3,3821.1,0.1722]
[1753843585970,0.4936,3821.2,3821.1,0.1722]
[1753843588493,5.70049,3821.2,3821.1,0.041]
[1753843588782,8.05487895,3821.2,3821.1,0.041]
[1753843588943,4.3688,3820.9,3820.8,0.001]
[1753843589270,4.3688,3820.9,3819.2,0.8047]
[1753843589271,1.3688,3820.7,3819.5,0.1312]
[1753843589431,3.55,3820.5,3819.5,0.1312]
[1753843589636,0.6812,3820.2,3819.5,0.1312]
[1753843589949,4.7842,3820.2,3819.5,0.1312]
[1753843590150,5.7221,3820.2,3819.5,0.1312]
[1753843591043,6.5088,3820.2,3819.5,0.1312]
[1753843591254,7.15968,3820.2,3819.5,0.1312]
[1753843592970,10.15968,3820.2,3819.5,0.1312]
[1753843595967,10.15968,3820.2,3819.2,0.8047]
[1753843596185,10.15968,3820.2,3819.3,0.1312]
[1753843596364,10.28886512,3820.2,3819.3,0.1312]
[1753843596979,10.48305088,3820.2,3819.1,0.04]
[1753843597149,13.10071487,3820.2,3819.1,0.04]
[1753843597475,0.55,3819.6,3819.1,0.04]
[1753843597638,0.1312,3819.2,3819.1,0.04]
[1753843597841,3.6812,3819.2,3819.1,0.04]
[1753843598133,8.6883,3819.2,3819.1,0.04]
[1753843598749,4.5843,3819.2,3819.1,0.04]
[1753843599146,8.6883,3819.2,3819.1,0.04]
[1753843599341,9.24505232,3819.2,3819.1,0.04]
[1753843599589,9.24405232,3819.2,3819.1,0.04]
[1753843599790,5.14105232,3819.2,3819.1,0.04]
[1753843600190,9.24405232,3819.2,3819.1,0.04]
[1753843601068,5.14105232,3819.2,3819.1,0.04]
[1753843601468,9.24505232,3819.2,3819.1,0.04]
[1753843605297,9.3797126,3819.2,3819.1,0.04]
[1753843606213,0.19418576,3820.2,3819.1,0.04]
[1753843606415,0.1312,3819.6,3819.1,0.1712]
[1753843606712,3.5657,3819.6,3819.1,0.04]
[1753843606886,0.1312,3819.3,3819.1,0.04]
[1753843607089,3.0,3819.3,3819.1,0.04]
[1753843607289,0.9031,3820.2,3819.2,1.2333]
[1753843607612,1.10511501,3820.6,3819.3,0.6209]
[1753843607815,1.10511501,3820.6,3819.2,0.1312]
[1753843607816,0.1312,3820.3,3819.8,0.1312]
[1753843608118,3.0,3820.3,3820.0,0.1312]
[1753843608495,4.103,3820.4,3820.0,0.1312]
[1753843608709,3.0,3820.3,3820.0,0.1312]
[1753843609618,3.4686,3820.3,3819.9,0.8136]
[1753843609935,3.5998,3820.3,3819.9,0.8136]
[1753843610118,3.0,3820.3,3819.9,0.8136]
[1753843610436,0.002,3820.7,3820.1,0.7527]
[1753843610737,3.0,3820.4,3820.1,0.7527]
[1753843610893,3.0,3820.4,3820.0,0.1312]
[1753843611081,3.4686,3820.4,3820.0,0.1312]
[1753843611811,3.0,3820.4,3820.0,0.1312]
[1753843614528,3.4686,3820.4,3820.0,0.1312]
[1753843614690,0.4686,3820.4,3820.0,0.1312]
[1753843615229,3.4686,3820.4,3820.0,0.1312]
[1753843615632,0.4686,3820.3,3820.0,0.1312]
[1753843616794,0.1332,3820.7,3820.0,0.1312]
[1753843616994,0.002,3820.7,3820.2,0.1312]
[1753843617226,0.002,3820.7,3820.6,0.1312]
[1753843617630,0.002,3820.7,3820.6,0.7521]
[1753843617826,0.002,3820.7,3820.6,1.5714]
[1753843624742,0.002,3820.7,3820.6,1.3745]
[1753843626233,0.002,3820.7,3820.6,1.5714]
[1753843626452,0.002,3820.7,3820.6,0.9505]
[1753843626624,0.002,3820.7,3820.6,1.5714]
[1753843628805,0.002,3821.1,3820.6,1.5714]
[1753843628806,0.002,3821.1,3820.8,2.61719021]
[1753843629010,0.002,3821.1,3821.0,0.8818]
[1753843629210,0.002,3821.1,3821.0,5.14797115]
[1753843629420,0.002,3821.1,3821.0,5.7427]
[1753843629708,0.002,3821.1,3821.0,1.5027]
[1753843629908,0.002,3821.1,3821.0,5.7427]
[1753843630320,0.002,3821.1,3821.0,1.3058]
[1753843631314,0.002,3821.1,3821.0,1.5027]
[1753843631652,0.002,3821.1,3821.0,1.3058]
[1753843632518,0.002,3821.1,3821.0,0.8818]
[1753843633245,0.002,3821.1,3821.0,0.90797115]
[1753843633760,0.002,3821.1,3821.0,0.8818]
[1753843640413,0.911,3821.1,3821.0,0.1312]
[1753843641508,0.002,3821.1,3821.0,0.1312]
[1753843641816,0.002,3821.1,3821.0,0.15737115]
[1753843643292,0.002,3821.1,3821.0,0.1312]
[1753843643492,0.002,3821.1,3821.0,4.18881593]
[1753843643905,0.002,3821.1,3821.0,3.99191593]
[1753843644431,0.002,3821.1,3821.0,0.9508]
[1753843644911,0.002,3821.1,3821.0,3.56791593]
[1753843645083,0.002,3821.1,3821.0,1.40097115]
[1753843645288,0.002,3821.1,3821.0,4.01808708]
[1753843646016,0.002,3821.1,3821.0,4.21498708]
[1753843647005,0.002,3821.1,3821.0,8.45498708]
[1753843647189,0.002,3821.1,3821.0,8.42881593]
[1753843647385,0.002,3821.1,3821.0,8.23191593]
[1753843649021,0.002,3821.1,3821.0,8.69681593]
[1753843650158,0.5049,3821.9,3821.0,6.2766]
[1753843650457,0.5049,3821.9,3821.8,0.1312]
[1753843650658,0.9524,3821.9,3821.8,0.1312]
[1753843652060,0.5253,3821.9,3821.8,0.1312]
[1753843652260,0.9728,3821.9,3821.8,0.1312]
[1753843652452,0.5253,3821.9,3821.8,0.1312]
[1753843653052,0.002,3822.1,3821.8,0.15736568]
[1753843653243,0.002,3822.5,3822.0,3.0]
[1753843653565,0.002,3822.5,3822.2,2.61627957]
[1753843653769,0.9328,3822.4,3822.3,4.094]
[1753843654142,0.9328,3822.4,3822.3,4.2252]
[1753843655671,0.4853,3822.4,3822.3,4.2252]
[1753843656868,0.002,3822.5,3822.4,0.7975]
[1753843657369,0.4873,3822.5,3822.4,0.7975]
[1753843657727,0.4853,3822.8,3822.4,0.7975]
[1753843657928,0.04,3822.9,3822.5,0.02616088]
[1753843658141,0.04,3822.9,3822.7,0.1304]
[1753843658444,0.04,3822.9,3822.8,3.38548364]
[1753843658641,0.04,3822.9,3822.8,3.83564247]
[1753843658840,0.002,3823.2,3822.8,1.41665883]
[1753843659069,0.002,3823.2,3822.9,4.7129]
[1753843659272,0.002,3823.2,3823.1,0.1304]
[1753843659639,0.002,3823.2,3823.1,4.13657837]
[1753843659838,0.04,3823.9,3823.2,2.61556167]
[1753843660033,0.04,3823.9,3823.5,0.1304]
[1753843660649,0.4873,3823.6,3823.5,0.1304]
[1753843660836,0.9348,3823.6,3823.5,0.1304]
[1753843661572,0.04,3823.9,3823.5,0.1304]
[1753843661573,0.04,3823.9,3823.5,0.15655404]
[1753843661874,0.04,3823.9,3823.8,0.1304]
[1753843662549,0.9728,3823.9,3823.8,0.1304]
[1753843663891,0.5253,3823.9,3823.8,0.1304]
[1753843664283,0.002,3824.0,3823.8,0.1304]
[1753843664485,0.002,3824.0,3823.9,4.11715131]
[1753843665317,0.4475,3824.8,3823.9,4.091]
[1753843665480,0.4475,3824.8,3824.0,5.0486]
[1753843665675,0.04,3824.9,3824.7,0.1304]
[1753843665913,0.4875,3824.9,3824.8,4.09]
[1753843666277,0.4475,3825.4,3824.8,4.8777]
[1753843666599,0.4875,3825.9,3824.8,4.8777]
[1753843666803,0.4875,3825.9,3825.8,0.1304]
[1753843667418,0.9728,3825.9,3825.8,0.1304]
[1753843670244,1.14992,3825.9,3825.8,0.1304]
[1753843673499,1.14992,3825.9,3825.3,4.088]
[1753843673739,0.9328,3825.8,3825.6,0.1304]
[1753843674112,0.7649,3825.6,3824.9,4.088]
[1753843674326,0.9328,3825.5,3825.3,0.1304]
[1753843674715,0.7649,3825.6,3825.3,0.1304]
[1753843674915,0.4475,3825.5,3825.3,0.1304]
[1753843675130,0.4853,3825.4,3824.9,4.088]
[1753843675332,0.7649,3825.6,3824.9,4.088]
[1753843675513,0.9328,3825.3,3824.9,4.088]
[1753843675945,0.9328,3825.3,3825.2,0.1304]
[1753843676129,0.7649,3825.6,3825.2,0.1304]
[1753843676641,0.9328,3825.5,3825.4,0.1304]
[1753843680132,1.91327,3825.5,3824.8,4.087]
[1753843680338,1.7457,3825.4,3825.1,0.1304]
[1753843680539,0.8232,3825.3,3824.8,4.087]
[1753843680741,0.8232,3825.1,3824.8,0.001]
[1753843681077,0.8232,3824.9,3824.8,0.001]
[1753843681572,1.7584,3824.9,3824.8,0.001]
[1753843684941,1.8888,3824.9,3824.8,0.001]
[1753843685361,1.7584,3824.9,3824.8,0.001]
[1753843686090,0.8232,3824.9,3824.8,0.001]
[1753843686994,1.7145,3825.2,3824.8,0.001]
[1753843687292,1.243,3825.2,3824.8,0.001]
[1753843687586,1.7097,3825.5,3825.1,0.1304]
[1753843688004,0.9352,3825.5,3825.1,0.1304]
[1753843688407,0.4637,3825.4,3825.1,0.1304]
[1753843688613,0.9352,3825.3,3825.1,0.1304]
[1753843688914,0.9352,3825.2,3825.1,0.1304]
[1753843691514,1.7225,3825.2,3824.8,0.1314]
[1753843691700,0.97259,3825.2,3824.8,0.1314]
[1753843691896,0.9352,3825.1,3824.8,0.1314]
[1753843692274,0.9352,3825.0,3824.8,0.1314]
[1753843692513,0.9352,3825.0,3824.8,0.001]
[1753843692822,0.7873,3825.2,3824.8,0.001]
[1753843693025,0.9352,3824.9,3824.8,0.001]
[1753843694240,2.02785,3824.9,3824.8,0.001]
[1753843694382,1.8556,3824.9,3824.8,0.001]
[1753843696503,0.79,3824.9,3824.8,0.001]
[1753843697044,1.7252,3824.9,3824.8,0.001]
[1753843697900,2.4056,3824.9,3824.8,0.001]
[1753843698245,8.56080743,3824.9,3824.8,0.001]
[1753843699238,5.94636,3824.9,3824.8,0.001]
[1753843699424,10.02936,3824.9,3824.8,0.001]
[1753843699810,3.9204,3824.9,3824.8,0.001]
[1753843700016,3.79,3824.9,3824.8,0.001]
[1753843700658,0.4657,3825.2,3824.8,0.001]
[1753843700659,0.002,3825.2,3824.8,0.001]
[1753843700871,0.002,3825.2,3824.9,0.4621]
[1753843701068,0.9352,3825.1,3824.8,0.001]
[1753843701768,0.002,3825.2,3824.8,0.001]
[1753843702069,0.002,3825.2,3824.8,0.4631]
[1753843702232,0.002,3825.2,3825.1,0.1304]
[1753843703021,0.9372,3825.2,3824.8,0.001]
[1753843703220,0.002,3825.2,3824.8,0.1314]
[1753843703425,0.9352,3825.1,3824.8,0.1314]
[1753843703630,0.002,3825.2,3824.8,0.1314]
[1753843703948,0.9372,3825.2,3824.8,0.1314]
[1753843704580,0.9352,3825.1,3824.8,0.1314]
[1753843704776,0.002,3825.2,3824.8,0.1314]
[1753843704977,0.4657,3825.2,3824.8,0.1314]
[1753843705451,0.002,3825.2,3824.8,0.1314]
[1753843709052,0.9372,3825.2,3824.8,0.1314]
[1753843709563,0.002,3825.2,3824.8,0.1314]
[1753843710785,0.002,3825.2,3824.9,0.7744]
[1753843710987,0.002,3825.2,3824.9,1.2546]
[1753843711188,0.002,3825.2,3825.1,0.1304]
[1753843711395,0.4418,3825.2,3824.8,0.001]
[1753843711621,0.8899,3825.1,3824.8,0.1314]
[1753843712190,0.8899,3825.1,3824.8,0.001]
[1753843712901,0.4501,3825.1,3824.8,0.001]
[1753843715418,0.002,3825.2,3824.8,0.001]
[1753843715627,0.002,3825.2,3824.8,0.4812]
[1753843715912,0.002,3825.2,3825.1,0.1304]
[1753843716317,0.002,3825.2,3825.1,0.6106]
[1753843717114,0.002,3825.2,3825.1,1.362]
[1753843717325,0.002,3825.2,3825.1,1.786]
[1753843717815,0.002,3825.2,3825.1,1.362]
[1753843720140,0.002,3825.2,3825.1,1.8121431]
[1753843720291,0.002,3825.2,3825.1,1.786]
[1753843721488,0.002,3825.2,3825.1,4.40031073]
[1753843721693,0.002,3825.2,3825.1,8.66645383]
[1753843721941,0.002,3825.2,3825.1,8.64031073]
[1753843723828,0.002,3825.2,3825.1,6.026]
[1753843724012,0.002,3825.2,3825.1,8.64031073]
[1753843724197,0.002,3825.2,3825.1,6.026]
[1753843724395,0.002,3825.2,3825.1,8.64031073]
[1753843725020,0.002,3825.5,3825.4,2.61410571]
[1753843725357,0.002,3825.5,3825.4,11.69290571]
[1753843725690,0.002,3825.5,3825.4,10.1134]
[1753843726094,0.002,3825.5,3825.4,12.72750571]
[1753843726499,0.002,3825.5,3825.4,10.1134]
[1753843727806,0.002,3825.5,3825.4,5.1302]
[1753843728010,0.002,3825.5,3825.4,9.2082]
[1753843729508,0.002,3825.5,3825.4,9.2072]
[1753843729957,0.8919,3825.5,3825.4,0.1304]
[1753843734539,1.05831,3825.5,3825.4,0.1304]
[1753843734741,1.05831,3825.5,3825.2,0.1304]
[1753843735057,1.7224,3825.4,3825.1,0.1304]
[1753843735549,0.8899,3825.3,3825.1,0.1304]
[1753843735955,0.8325,3825.4,3825.1,0.1304]
[1753843736257,0.8919,3825.5,3825.1,0.1304]
[1753843736557,0.8899,3825.4,3825.3,0.1304]
[1753843740378,1.05565,3825.4,3824.8,0.001]
[1753843740547,1.7446,3825.3,3825.0,0.1304]
[1753843741061,0.9154,3825.2,3824.8,0.001]
[1753843741456,0.9596,3825.3,3824.8,0.001]
[1753843741667,0.9154,3825.1,3824.8,0.001]
[1753843742140,0.9154,3825.0,3824.8,0.001]
[1753843742656,0.9154,3824.9,3824.8,0.001]
[1753843743262,0.002,3825.5,3824.9,0.778]
[1753843743463,0.002,3825.5,3824.8,0.001]
[1753843743464,0.8007,3825.3,3824.8,0.001]
[1753843743666,0.9154,3825.2,3824.8,0.001]
[1753843743826,0.9154,3825.2,3825.0,0.1304]
[1753843744021,0.9154,3825.1,3825.0,0.1304]
[1753843744241,0.9154,3825.1,3824.8,0.001]
[1753843744465,0.9154,3825.0,3824.8,0.1314]
[1753843744836,0.9154,3824.9,3824.8,0.1314]
[1753843745859,0.8007,3825.3,3824.8,0.6216]
[1753843746158,0.4837,3825.5,3824.8,0.6216]
[1753843746159,0.4837,3825.5,3825.2,0.1304]
[1753843746334,0.002,3825.5,3825.2,0.1304]
[1753843746539,0.002,3825.5,3824.9,0.7984]
[1753843746738,0.002,3825.5,3825.4,0.1304]
[1753843749268,0.002,3825.5,3825.4,1.3998]
[1753843749482,0.002,3825.5,3825.4,1.8238]
[1753843749973,0.002,3825.5,3825.4,0.1304]
[1753843750125,0.9174,3825.5,3825.4,0.1304]
[1753843750463,0.002,3825.5,3825.4,0.1304]
[1753843754372,0.9174,3825.5,3825.4,0.1304]
[1753843755459,1.09272,3825.5,3824.9,4.24]
[1753843755667,0.9154,3825.4,3825.2,0.1304]
[1753843756036,0.4337,3825.3,3825.2,0.1304]
[1753843756253,0.9154,3825.3,3825.2,0.1304]
[1753843756878,0.763,3825.2,3825.0,0.1304]
[1753843757468,0.9154,3825.1,3825.0,0.1304]
[1753843757777,0.4837,3825.5,3825.0,0.1304]
[1753843757983,0.4817,3825.4,3825.0,0.1304]
[1753843758142,0.4817,3825.4,3824.8,0.001]
[1753843758489,0.4817,3825.4,3825.2,0.1304]
[1753843758847,0.9154,3825.3,3825.2,0.1304]
[1753843759546,0.002,3825.5,3825.2,0.1304]
[1753843759748,0.9154,3825.4,3825.2,0.1304]
[1753843760168,0.002,3825.5,3825.2,0.1304]
[1753843760391,0.9154,3825.4,3825.2,0.1304]